[Event "43. Zurich Weihnachtsopen 2019"]
[Site "Zurich/SUI"]
[Date "2019.12.27"]
[Round "3.5"]
[White "Kunin, Vitaly"]
[Black "Damjanovic, Vuk"]
[Result "1-0"]
[ECO "A49"]
[WhiteElo "2538"]
[BlackElo "2280"]
[Annotator "ChessBase"]
[PlyCount "115"]
[EventDate "2019.12.26"]
[EventType "swiss"]
[SourceTitle "playchess.com"]
[Source "ChessBase"]
[SourceQuality "1"]
[TimeControl "40/5400+30:1800+30"]

1. d4 {[%emt 0:00:00]} Nf6 {[%emt 0:00:00]} 2. Nf3 {[%emt 0:00:00]} g6 {[%emt 0:00:15]} 3. g3 {[%emt 0:00:20]} Bg7 {[%emt 0:00:16]} 4. Bg2 {[%emt 0:00:12]} O-O {[%emt 0:00:21]} 5. O-O {[%emt 0:00:15]} d6 {[%emt 0:00:35]} 6. a4 {[%emt 0:00:39]} a5 {[%emt 0:01:02]} 7. Nc3 {[%emt 0:01:02]} d5 {[%emt 0:01:08]} 8. Bf4 {[%emt 0:03:57]} Nh5 {[%emt 0:04:43]} 9. Bg5 {[%emt 0:09:43]} h6 {[%emt 0:00:32]} 10. Bd2 {[%emt 0:00:29]} Nf6 {[%emt 0:03:16]} 11. Qc1 {[%emt 0:03:57]} Kh7 {[%emt 0:00:43]} 12. Bf4 {[%emt 0:01:12]} c6 {[%emt 0:05:40]} 13. Re1 {[%emt 0:01:54]} Be6 {[%emt 0:15:02]} 14. e4 {[%emt 0:03:08]} Nxe4 {[%emt 0:01:03]} 15. Nxe4 {[%emt 0:00:10]} dxe4 {[%emt 0:00:04]} 16. Rxe4 {[%emt 0:00:12]} Bd5 {[%emt 0:00:13]} 17. Re2 {[%emt 0:02:02]} Nd7 {[%emt 0:07:13]} 18. c3 {[%emt 0:11:31]} Re8 {[%emt 0:04:30]} 19. Qe1 {[%emt 0:04:08]} e6 {[%emt 0:02:37]} 20. h4 {[%emt 0:00:49]} b5 {[%emt 0:08:36]} 21. Ne5 {[%emt 0:07:48]} Nxe5 {[%emt 0:00:56]} 22. Bxe5 {[%emt 0:00:28]} Bxg2 {[%emt 0:05:24]} 23. Kxg2 {[%emt 0:00:10]} Qd5+ {[%emt 0:00:10]} 24. Kg1 {[%emt 0:00:16]} bxa4 {[%emt 0:00:12]} 25. Bxg7 {[%emt 0:00:22]} Kxg7 {[%emt 0:00:09]} 26. Rxa4 {[%emt 0:00:43]} Qb5 {[%emt 0:00:47]} 27. Ra2 {[%emt 0:01:54]} Qc4 {[%emt 0:01:43]} 28. Ra3 {[%emt 0:00:17]} Reb8 {[%emt 0:03:16]} 29. Rd2 {[%emt 0:01:05]} Rb5 {[%emt 0:01:29]} 30. Qf1 {[%emt 0:01:13]} Qxf1+ {[%emt 0:02:16]} 31. Kxf1 {[%emt 0:00:12]} c5 {[%emt 0:02:23]} 32. dxc5 {[%emt 0:02:03]} Rxc5 {[%emt 0:00:08]} 33. b4 {[%emt 0:01:34]} Rc4 {[%emt 0:04:22]} 34. bxa5 {[%emt 0:03:33]} Ra6 {[%emt 0:00:17]} 35. Ke2 {[%emt 0:00:46]} Rc5 {[%emt 0:00:01]} 36. Rda2 {[%emt 0:00:50]} Kf6 {[%emt 0:00:12]} 37. Kd3 {[%emt 0:00:41]} Ke5 {[%emt 0:00:22]} 38. c4 {[%emt 0:00:41]} Kd6 {[%emt 0:00:09]} 39. Kc3 {[%emt 0:00:39]} Kc6 {[%emt 0:00:19]} 40. Kb4 {[%emt 0:00:49]} e5 {[%emt 0:01:13]} 41. Rd3 {[%emt 0:33:03]} e4 {[%emt 0:31:36]} 42. Rd5 {[%emt 0:00:37]} Rxd5 {[%emt 0:00:36]} 43. cxd5+ {[%emt 0:00:07]} Kxd5 {[%emt 0:00:02]} 44. Kb5 {[%emt 0:00:11]} Ra8 {[%emt 0:01:10]} 45. a6 {[%emt 0:00:46]} f5 {[%emt 0:00:29]} 46. a7 {[%emt 0:00:12]} g5 {[%emt 0:00:59]} 47. h5 {[%emt 0:02:02]} f4 {[%emt 0:00:18]} 48. gxf4 {[%emt 0:00:41]} gxf4 {[%emt 0:00:14]} 49. Kb6 {[%emt 0:00:10]} e3 {[%emt 0:03:53]} 50. fxe3 {[%emt 0:00:33]} fxe3 {[%emt 0:00:05]} 51. Kb7 {[%emt 0:00:14]} Rxa7+ {[%emt 0:00:44]} 52. Rxa7 {[%emt 0:00:31]} e2 {[%emt 0:00:25]} 53. Ra1 {[%emt 0:00:08]} Ke4 {[%emt 0:00:06]} 54. Kc6 {[%emt 0:00:10]} Kf3 {[%emt 0:00:02]} 55. Kd5 {[%emt 0:00:13]} Kf2 {[%emt 0:00:03]} 56. Ke4 {[%emt 0:00:18]} e1=Q+ {[%emt 0:00:04]} 57. Rxe1 {[%emt 0:00:08]} Kxe1 {[%emt 0:00:02]} 58. Kf5 {[%emt 0:00:11]} 1-0

[Event "43. Zurich Weihnachtsopen 2019"]
[Site "Zurich/SUI"]
[Date "2019.12.27"]
[Round "3.6"]
[White "Van Zyl-Rudd, Jack"]
[Black "Grover, Sahaj"]
[Result "0-1"]
[ECO "E36"]
[WhiteElo "2290"]
[BlackElo "2508"]
[Annotator "ChessBase"]
[PlyCount "104"]
[EventDate "2019.12.26"]
[EventType "swiss"]
[SourceTitle "playchess.com"]
[Source "ChessBase"]
[SourceQuality "1"]
[TimeControl "40/5400+30:1800+30"]

1. d4 {[%emt 0:05:50]} e6 {[%emt 0:00:00]} 2. c4 {[%emt 0:00:16]} Nf6 {[%emt 0:01:12]} 3. Nc3 {[%emt 0:00:23]} Bb4 {[%emt 0:00:06]} 4. Qc2 {[%emt 0:00:44]} d5 {[%emt 0:00:07]} 5. a3 {[%emt 0:00:31]} Bxc3+ {[%emt 0:00:06]} 6. Qxc3 {[%emt 0:00:04]} dxc4 {[%emt 0:00:12]} 7. Qxc4 {[%emt 0:01:39]} b6 {[%emt 0:00:09]} 8. Nf3 {[%emt 0:00:30]} Ba6 {[%emt 0:02:07]} 9. Qa4+ {[%emt 0:01:40]} Qd7 {[%emt 0:00:28]} 10. Qxd7+ {[%emt 0:00:47]} Nbxd7 {[%emt 0:00:12]} 11. e3 {[%emt 0:35:30]} Bb7 {[%emt 0:04:45]} 12. b4 {[%emt 0:06:13]} O-O {[%emt 0:00:41]} 13. Bb2 {[%emt 0:02:56]} Rfc8 {[%emt 0:01:56]} 14. Be2 {[%emt 0:04:39]} a5 {[%emt 0:03:10]} 15. b5 {[%emt 0:05:59]} c6 {[%emt 0:05:18]} 16. bxc6 {[%emt 0:06:40]} Rxc6 {[%emt 0:00:07]} 17. Bd3 {[%emt 0:01:00]} Ba6 {[%emt 0:02:50]} 18. Kd2 {[%emt 0:02:38]} Bxd3 {[%emt 0:00:27]} 19. Kxd3 {[%emt 0:02:54]} Ng4 {[%emt 0:00:19]} 20. Rhf1 {[%emt 0:07:03]} Rd8 {[%emt 0:04:23]} 21. Rac1 {[%emt 0:02:38]} Rxc1 {[%emt 0:00:41]} 22. Bxc1 {[%emt 0:00:05]} Nde5+ {[%emt 0:00:39]} 23. Nxe5 {[%emt 0:00:16]} Nxe5+ {[%emt 0:00:05]} 24. Kc3 {[%emt 0:03:35]} Rc8+ {[%emt 0:00:12]} 25. Kb3 {[%emt 0:00:07]} Nc4 {[%emt 0:02:53]} 26. e4 {[%emt 0:02:02]} Nd6 {[%emt 0:01:45]} 27. f3 {[%emt 0:00:59]} f6 {[%emt 0:22:27]} 28. Bb2 {[%emt 0:04:14]} Nc4 {[%emt 0:01:54]} 29. Rc1 {[%emt 0:00:28]} b5 {[%emt 0:00:04]} 30. Rc2 {[%emt 0:01:25]} Kf7 {[%emt 0:00:05]} 31. Bc1 {[%emt 0:00:15]} Ke7 {[%emt 0:00:19]} 32. a4 {[%emt 0:01:10]} bxa4+ {[%emt 0:05:14]} 33. Kxa4 {[%emt 0:00:01]} Nb6+ {[%emt 0:05:43]} 34. Kb3 {[%emt 0:00:05]} Rxc2 {[%emt 0:00:07]} 35. Kxc2 {[%emt 0:00:03]} Kd6 {[%emt 0:00:09]} 36. Ba3+ {[%emt 0:01:21]} Kc6 {[%emt 0:00:01]} 37. Kc3 {[%emt 0:00:54]} Kb5 {[%emt 0:00:10]} 38. Bf8 {[%emt 0:00:14]} g6 {[%emt 0:00:07]} 39. g4 {[%emt 0:00:46]} a4 {[%emt 0:02:43]} 40. h4 {[%emt 0:00:53]} Nc4 {[%emt 0:00:33]} 41. Bg7 {[%emt 0:09:25]} a3 {[%emt 0:00:38]} 42. Kb3 {[%emt 0:00:39]} Nd2+ {[%emt 0:00:06]} 43. Kxa3 {[%emt 0:00:10]} Nxf3 {[%emt 0:00:06]} 44. Bxf6 {[%emt 0:00:12]} Kc4 {[%emt 0:00:06]} 45. d5 {[%emt 0:12:57]} exd5 {[%emt 0:00:07]} 46. e5 {[%emt 0:00:38]} Nd4 {[%emt 0:00:06]} 47. h5 {[%emt 0:02:30]} Ne6 {[%emt 0:00:17]} 48. hxg6 {[%emt 0:00:42]} hxg6 {[%emt 0:00:02]} 49. Kb2 {[%emt 0:02:26]} Kd3 {[%emt 0:00:12]} 50. Kb3 {[%emt 0:00:32]} Ke3 {[%emt 0:00:50]} 51. Kc3 {[%emt 0:03:39]} d4+ {[%emt 0:01:09]} 52. Kc2 {[%emt 0:00:05]} Ke2 {[%emt 0:00:10]} 0-1

[Event "43. Zurich Weihnachtsopen 2019"]
[Site "Zurich/SUI"]
[Date "2019.12.27"]
[Round "3.7"]
[White "Curien, Nicolas"]
[Black "Henderson de La Fuente, Lance"]
[Result "0-1"]
[ECO "C15"]
[WhiteElo "2257"]
[BlackElo "2492"]
[Annotator "ChessBase"]
[PlyCount "62"]
[EventDate "2019.12.26"]
[EventType "swiss"]
[SourceTitle "playchess.com"]
[Source "ChessBase"]
[SourceQuality "1"]
[TimeControl "40/5400+30:1800+30"]

1. d4 {[%emt 0:00:00]} e6 {[%emt 0:00:18]} 2. e4 {[%emt 0:00:15]} d5 {[%emt 0:00:07]} 3. Nc3 {[%emt 0:00:07]} Bb4 {[%emt 0:00:22]} 4. a3 {[%emt 0:00:29]} Bxc3+ {[%emt 0:02:17]} 5. bxc3 {[%emt 0:00:07]} dxe4 {[%emt 0:01:23]} 6. Qg4 {[%emt 0:00:09]} Nf6 {[%emt 0:00:23]} 7. Qxg7 {[%emt 0:00:07]} Rg8 {[%emt 0:00:07]} 8. Qh6 {[%emt 0:00:07]} Rg6 {[%emt 0:00:38]} 9. Qe3 {[%emt 0:04:22]} Nc6 {[%emt 0:07:04]} 10. Bb2 {[%emt 0:07:50]} Ne7 {[%emt 0:00:49]} 11. c4 {[%emt 0:02:48]} Nf5 {[%emt 0:00:44]} 12. Qc3 {[%emt 0:10:26]} e3 {[%emt 0:08:10]} 13. f3 {[%emt 0:05:14]} b5 {[%emt 0:02:49]} 14. d5 {[%emt 0:05:39]} bxc4 {[%emt 0:01:28]} 15. Bxc4 {[%emt 0:05:42]} Nxd5 {[%emt 0:08:32]} 16. Qh8+ {[%emt 0:25:17]} Ke7 {[%emt 0:00:14]} 17. Qxd8+ {[%emt 0:00:58]} Kxd8 {[%emt 0:00:02]} 18. O-O-O {[%emt 0:01:07]} Nd6 {[%emt 0:05:39]} 19. Bxd5 {[%emt 0:04:43]} exd5 {[%emt 0:00:02]} 20. Ne2 {[%emt 0:01:41]} Rxg2 {[%emt 0:01:23]} 21. Nf4 {[%emt 0:00:43]} Rf2 {[%emt 0:00:22]} 22. Nxd5 {[%emt 0:03:52]} e2 {[%emt 0:01:51]} 23. Rde1 {[%emt 0:03:01]} Bb7 {[%emt 0:03:21]} 24. Bf6+ {[%emt 0:01:33]} Kd7 {[%emt 0:00:18]} 25. Bh4 {[%emt 0:00:25]} Rxf3 {[%emt 0:00:33]} 26. Nf6+ {[%emt 0:04:42]} Rxf6 {[%emt 0:00:06]} 27. Bxf6 {[%emt 0:00:07]} Bxh1 {[%emt 0:00:06]} 28. Rxh1 {[%emt 0:00:05]} Rg8 {[%emt 0:04:11]} 29. Bd4 {[%emt 0:02:41]} Rg2 {[%emt 0:01:56]} 30. Bxa7 {[%emt 0:00:55]} f5 {[%emt 0:00:58]} 31. Be3 {[%emt 0:01:50]} Nc4 {[%emt 0:00:13]} 0-1

[Event "43. Zurich Weihnachtsopen 2019"]
[Site "Zurich/SUI"]
[Date "2019.12.28"]
[Round "4.2"]
[White "Grover, Sahaj"]
[Black "Martirosyan, Haik M."]
[Result "1/2-1/2"]
[ECO "C65"]
[WhiteElo "2508"]
[BlackElo "2613"]
[Annotator "ChessBase"]
[PlyCount "25"]
[EventDate "2019.12.26"]
[EventType "swiss"]
[SourceTitle "playchess.com"]
[Source "ChessBase"]
[SourceQuality "1"]
[TimeControl "40/5400+30:1800+30"]

1. e4 {[%emt 0:01:52]} e5 {[%emt 0:00:00]} 2. Nf3 {[%emt 0:00:08]} Nc6 {[%emt 0:00:00]} 3. Bb5 {[%emt 0:00:15]} Nf6 {[%emt 0:00:14]} 4. d3 {[%emt 0:00:30]} Bc5 {[%emt 0:00:39]} 5. c3 {[%emt 0:01:03]} O-O {[%emt 0:00:23]} 6. O-O {[%emt 0:00:30]} Re8 {[%emt 0:01:29]} 7. d4 {[%emt 0:13:24]} Bb6 {[%emt 0:01:21]} 8. Bg5 {[%emt 0:02:00]} h6 {[%emt 0:06:02]} 9. Bxf6 {[%emt 0:02:51]} Qxf6 {[%emt 0:00:16]} 10. Bxc6 {[%emt 0:00:14]} Qxc6 {[%emt 0:05:57]} 11. Nxe5 {[%emt 0:00:26]} Qxe4 {[%emt 0:00:51]} 12. Nd2 {[%emt 0:09:49]} Qf5 {[%emt 0:03:42]} 13. Ndc4 {[%emt 0:01:37]} 1/2-1/2

[Event "43. Zurich Weihnachtsopen 2019"]
[Site "Zurich/SUI"]
[Date "2019.12.28"]
[Round "4.5"]
[White "Fecker, Noah"]
[Black "Maki-Uuro, Miikka"]
[Result "1/2-1/2"]
[ECO "B36"]
[WhiteElo "2277"]
[BlackElo "2331"]
[Annotator "NA"]
[PlyCount "50"]
[EventDate "2019.12.26"]
[EventType "swiss"]
[SourceTitle "playchess.com"]
[Source "ChessBase"]
[SourceQuality "1"]
[TimeControl "40/5400+30:1800+30"]

1. e4 {[%emt 0:00:00]} c5 {[%emt 0:00:00]} 2. Nf3 {[%emt 0:00:00]} g6 {[%emt 0:00:00]} 3. d4 {[%emt 0:00:17]} cxd4 {[%emt 0:00:00]} 4. Nxd4 {[%emt 0:00:04]} Nc6 {[%emt 0:00:14]} 5. c4 {[%emt 0:01:04]} Nf6 {[%emt 0:00:25]} 6. Nc3 {[%emt 0:00:32]} Nxd4 {[%emt 0:00:20]} 7. Qxd4 {[%emt 0:00:08]} d6 {[%emt 0:00:14]} 8. Bg5 {[%emt 0:07:24]} Bg7 {[%emt 0:00:40]} 9. f3 {[%emt 0:05:03]} O-O {[%emt 0:02:20]} 10. Qd2 {[%emt 0:01:44]} a5 {[%emt 0:03:31]} 11. Rc1 {[%emt 0:10:25]} a4 {[%emt 0:02:21]} 12. Be2 {[%emt 0:02:09]} Qa5 {[%emt 0:10:53]} 13. Kf2 {[%emt 0:08:24]} Bd7 {[%emt 0:35:21]} 14. Rhd1 {[%emt 0:21:32]} Rfc8 {[%emt 0:01:13]} 15. Bxf6 {[%emt 0:05:53]} Bxf6 {[%emt 0:02:29]} 16. Nd5 {[%emt 0:00:08]} Qxd2 {[%emt 0:02:02]} 17. Rxd2 {[%emt 0:11:43]} Kg7 {[%emt 0:01:18]} 18. Nb6 {[%emt 0:02:23]} Bg5 {[%emt 0:00:24]} 19. Ke1 {[%emt 0:00:45]} Bc6 {[%emt 0:07:45]} 20. Rcc2 {[%emt 0:02:10]} Bxd2+ {[%emt 0:00:19]} 21. Kxd2 {[%emt 0:00:02]} Rd8 {[%emt 0:01:01]} 22. Nxa8 {[%emt 0:00:07]} Rxa8 {[%emt 0:00:05]} 23. a3 {[%emt 0:03:35]} f5 {[%emt 0:01:31]} 24. Ke3 {[%emt 0:02:03]} fxe4 {[%emt 0:01:01]} 25. fxe4 {[%emt 0:00:08]} Ra5 {[%emt 0:07:58]} 1/2-1/2

[Event "43. Zurich Weihnachtsopen 2019"]
[Site "Zurich/SUI"]
[Date "2019.12.28"]
[Round "4.6"]
[White "Unuk, Laura"]
[Black "Wagner, Leopold Franziskus"]
[Result "1-0"]
[ECO "D02"]
[WhiteElo "2305"]
[BlackElo "2150"]
[Annotator "NA"]
[PlyCount "39"]
[EventDate "2019.12.26"]
[EventType "swiss"]
[SourceTitle "playchess.com"]
[Source "ChessBase"]
[SourceQuality "1"]
[TimeControl "40/5400+30:1800+30"]

1. Nf3 {[%emt 0:00:00]} d5 {[%emt 0:00:00]} 2. d4 {[%emt 0:01:01]} Nf6 {[%emt 0:00:00]} 3. Bf4 {[%emt 0:03:32]} Bf5 {[%emt 0:00:00]} 4. c3 {[%emt 0:01:21]} e6 {[%emt 0:00:42]} 5. Nbd2 {[%emt 0:00:15]} Bd6 {[%emt 0:00:59]} 6. e3 {[%emt 0:02:41]} Nbd7 {[%emt 0:02:08]} 7. Be2 {[%emt 0:02:49]} O-O {[%emt 0:04:42]} 8. Ne5 {[%emt 0:01:24]} Bxe5 {[%emt 0:07:29]} 9. dxe5 {[%emt 0:03:18]} Ne4 {[%emt 0:02:44]} 10. g4 {[%emt 0:07:07]} Bg6 {[%emt 0:00:18]} 11. h4 {[%emt 0:00:21]} Nxd2 {[%emt 0:03:09]} 12. Qxd2 {[%emt 0:00:31]} f6 {[%emt 0:01:56]} 13. exf6 {[%emt 0:06:05]} Nxf6 {[%emt 0:12:13]} 14. h5 {[%emt 0:03:26]} Ne4 {[%emt 0:02:02]} 15. Qd4 {[%emt 0:01:25]} Be8 {[%emt 0:04:03]} 16. f3 {[%emt 0:09:11]} Nd6 {[%emt 0:02:24]} 17. h6 {[%emt 0:01:02]} Qe7 {[%emt 0:05:43]} 18. hxg7 {[%emt 0:01:59]} Qxg7 {[%emt 0:00:39]} 19. Qxg7+ {[%emt 0:01:55]} Kxg7 {[%emt 0:00:07]} 20. Bh6+ {[%emt 0:00:05]} 1-0

[Event "43. Zurich Weihnachtsopen 2019"]
[Site "Zurich/SUI"]
[Date "2019.12.28"]
[Round "4.8"]
[White "Janoszka, Arnd"]
[Black "Spiric, Igor"]
[Result "1-0"]
[ECO "A10"]
[WhiteElo "2353"]
[BlackElo "2239"]
[Annotator "NA"]
[PlyCount "61"]
[EventDate "2019.12.26"]
[EventType "swiss"]
[SourceTitle "playchess.com"]
[Source "ChessBase"]
[SourceQuality "1"]
[TimeControl "40/5400+30:1800+30"]

1. c4 {[%emt 0:01:53]} b6 {[%emt 0:00:00]} 2. Nc3 {[%emt 0:01:04]} e6 {[%emt 0:03:17]} 3. g3 {[%emt 0:03:20]} Bb7 {[%emt 0:00:09]} 4. e4 {[%emt 0:00:30]} f5 {[%emt 0:05:29]} 5. Bg2 {[%emt 0:03:09]} Nf6 {[%emt 0:00:35]} 6. d3 {[%emt 0:12:45]} Bb4 {[%emt 0:02:46]} 7. Nge2 {[%emt 0:00:45]} fxe4 {[%emt 0:03:11]} 8. O-O {[%emt 0:00:40]} O-O {[%emt 0:00:47]} 9. dxe4 {[%emt 0:01:28]} e5 {[%emt 0:05:57]} 10. a3 {[%emt 0:04:35]} Be7 {[%emt 0:02:37]} 11. Nd5 {[%emt 0:07:44]} Nxd5 {[%emt 0:06:32]} 12. exd5 {[%emt 0:01:52]} d6 {[%emt 0:16:29]} 13. f4 {[%emt 0:10:03]} Nd7 {[%emt 0:00:54]} 14. Bh3 {[%emt 0:06:34]} a5 {[%emt 0:02:17]} 15. Be3 {[%emt 0:04:29]} Nf6 {[%emt 0:09:43]} 16. Be6+ {[%emt 0:07:20]} Kh8 {[%emt 0:00:07]} 17. Qd3 {[%emt 0:01:06]} Bc8 {[%emt 0:07:30]} 18. f5 {[%emt 0:05:56]} Qe8 {[%emt 0:02:00]} 19. h3 {[%emt 0:03:07]} Qh5 {[%emt 0:07:33]} 20. Kg2 {[%emt 0:00:38]} Ba6 {[%emt 0:02:50]} 21. Nc3 {[%emt 0:05:41]} e4 {[%emt 0:09:08]} 22. Qd4 {[%emt 0:02:59]} c5 {[%emt 0:07:00]} 23. dxc6 {[%emt 0:00:16]} d5 {[%emt 0:00:07]} 24. cxd5 {[%emt 0:02:50]} Bd3 {[%emt 0:01:54]} 25. d6 {[%emt 0:00:56]} Rfd8 {[%emt 0:00:17]} 26. Bf4 {[%emt 0:00:42]} Bxd6 {[%emt 0:00:47]} 27. Bxd6 {[%emt 0:00:15]} Ne8 {[%emt 0:00:14]} 28. Bd7 {[%emt 0:00:28]} Bxf1+ {[%emt 0:01:27]} 29. Rxf1 {[%emt 0:00:07]} Nxd6 {[%emt 0:00:23]} 30. Qxd6 {[%emt 0:00:18]} Qf7 {[%emt 0:00:40]} 31. Qe6 {[%emt 0:00:27]} 1-0

[Event "43. Zurich Weihnachtsopen 2019"]
[Site "Zurich/SUI"]
[Date "2019.12.29"]
[Round "5.1"]
[White "Kunin, Vitaly"]
[Black "Lagarde, Maxime"]
[Result "1/2-1/2"]
[ECO "A80"]
[WhiteElo "2538"]
[BlackElo "2655"]
[Annotator "ChessBase"]
[PlyCount "67"]
[EventDate "2019.12.26"]
[EventType "swiss"]
[SourceTitle "playchess.com"]
[Source "ChessBase"]
[SourceQuality "1"]
[TimeControl "40/5400+30:1800+30"]

1. d4 {[%emt 0:00:00]} f5 {[%emt 0:00:42]} 2. Nc3 {[%emt 0:00:00]} Nf6 {[%emt 0:00:02]} 3. Bg5 {[%emt 0:00:15]} d5 {[%emt 0:00:04]} 4. f3 {[%emt 0:00:35]} c5 {[%emt 0:00:16]} 5. e4 {[%emt 0:01:20]} Nc6 {[%emt 0:08:02]} 6. Nge2 {[%emt 0:01:51]} fxe4 {[%emt 0:14:14]} 7. fxe4 {[%emt 0:00:59]} Bg4 {[%emt 0:00:40]} 8. Bxf6 {[%emt 0:06:47]} exf6 {[%emt 0:01:01]} 9. exd5 {[%emt 0:10:44]} cxd4 {[%emt 0:03:23]} 10. dxc6 {[%emt 0:02:20]} dxc3 {[%emt 0:00:10]} 11. cxb7 {[%emt 0:11:43]} Qxd1+ {[%emt 0:04:17]} 12. Rxd1 {[%emt 0:00:23]} Rb8 {[%emt 0:00:04]} 13. h3 {[%emt 0:02:17]} Bxe2 {[%emt 0:00:46]} 14. Bxe2 {[%emt 0:00:10]} Rxb7 {[%emt 0:00:17]} 15. bxc3 {[%emt 0:00:21]} Bc5 {[%emt 0:00:36]} 16. Bc4 {[%emt 0:01:19]} Ke7 {[%emt 0:03:11]} 17. Ke2 {[%emt 0:00:58]} Rc7 {[%emt 0:02:27]} 18. Bd5 {[%emt 0:02:02]} Rb8 {[%emt 0:01:06]} 19. Rhe1 {[%emt 0:07:44]} Bd6 {[%emt 0:00:57]} 20. Rd3 {[%emt 0:06:20]} Be5 {[%emt 0:06:03]} 21. Kd2 {[%emt 0:01:39]} Rb5 {[%emt 0:02:27]} 22. Re4 {[%emt 0:03:48]} Rb1 {[%emt 0:02:44]} 23. Rb4 {[%emt 0:03:33]} Rf1 {[%emt 0:07:51]} 24. c4 {[%emt 0:08:35]} Rf2+ {[%emt 0:02:02]} 25. Kd1 {[%emt 0:00:10]} Rf1+ {[%emt 0:02:30]} 26. Kd2 {[%emt 0:00:07]} Rf2+ {[%emt 0:00:17]} 27. Kd1 {[%emt 0:00:06]} Rf1+ {[%emt 0:00:03]} 28. Ke2 {[%emt 0:00:21]} Rc1 {[%emt 0:00:28]} 29. Ra3 {[%emt 0:04:55]} Rxc2+ {[%emt 0:05:10]} 30. Kd3 {[%emt 0:00:10]} Bd6 {[%emt 0:02:49]} 31. Kxc2 {[%emt 0:01:14]} Bxb4 {[%emt 0:00:03]} 32. Re3+ {[%emt 0:00:13]} Kd8 {[%emt 0:02:32]} 33. Re6 {[%emt 0:04:09]} Re7 {[%emt 0:00:26]} 34. Kd3 {[%emt 0:00:29]} 1/2-1/2

[Event "43. Zurich Weihnachtsopen 2019"]
[Site "Zurich/SUI"]
[Date "2019.12.29"]
[Round "5.2"]
[White "Martirosyan, Haik M."]
[Black "Henderson de La Fuente, Lance"]
[Result "1-0"]
[ECO "C67"]
[WhiteElo "2613"]
[BlackElo "2492"]
[Annotator "ChessBase"]
[PlyCount "121"]
[EventDate "2019.12.26"]
[EventType "swiss"]
[SourceTitle "playchess.com"]
[Source "ChessBase"]
[SourceQuality "1"]
[TimeControl "40/5400+30:1800+30"]

1. e4 {[%emt 0:00:00]} e5 {[%emt 0:00:10]} 2. Nf3 {[%emt 0:00:00]} Nc6 {[%emt 0:00:07]} 3. Bb5 {[%emt 0:03:09]} Nf6 {[%emt 0:00:42]} 4. O-O {[%emt 0:03:18]} Nxe4 {[%emt 0:00:15]} 5. Qe2 {[%emt 0:01:55]} Nd6 {[%emt 0:02:16]} 6. Bxc6 {[%emt 0:00:07]} dxc6 {[%emt 0:00:18]} 7. Qxe5+ {[%emt 0:00:06]} Qe7 {[%emt 0:00:51]} 8. Qa5 {[%emt 0:00:11]} Qd8 {[%emt 0:01:40]} 9. Qc3 {[%emt 0:01:38]} Qf6 {[%emt 0:14:57]} 10. Re1+ {[%emt 0:01:15]} Be6 {[%emt 0:00:22]} 11. Nd4 {[%emt 0:04:40]} Kd7 {[%emt 0:03:20]} 12. Nxe6 {[%emt 0:02:12]} fxe6 {[%emt 0:00:05]} 13. d4 {[%emt 0:04:19]} Nf5 {[%emt 0:10:00]} 14. Bf4 {[%emt 0:05:20]} Bd6 {[%emt 0:04:26]} 15. Be5 {[%emt 0:00:31]} Qg6 {[%emt 0:06:46]} 16. Nd2 {[%emt 0:00:39]} Rad8 {[%emt 0:01:06]} 17. Nf3 {[%emt 0:05:29]} Kc8 {[%emt 0:01:19]} 18. Qc4 {[%emt 0:08:59]} Rhe8 {[%emt 0:04:39]} 19. c3 {[%emt 0:00:38]} Qh6 {[%emt 0:05:15]} 20. Re4 {[%emt 0:03:16]} g5 {[%emt 0:02:30]} 21. Rae1 {[%emt 0:02:16]} Qg6 {[%emt 0:03:52]} 22. Qe2 {[%emt 0:03:45]} g4 {[%emt 0:06:00]} 23. Nd2 {[%emt 0:00:21]} Bxe5 24. Rxe5 {[%emt 0:00:36]} Ng7 {[%emt 0:02:20]} 25. Nc4 {[%emt 0:04:01]} h5 {[%emt 0:01:45]} 26. Ra5 {[%emt 0:02:17]} Kb8 {[%emt 0:01:10]} 27. Ne5 {[%emt 0:00:27]} Qf6 {[%emt 0:00:11]} 28. Qc4 {[%emt 0:02:41]} Rf8 {[%emt 0:00:47]} 29. Rf1 {[%emt 0:00:52]} Rd6 {[%emt 0:04:21]} 30. Ra3 {[%emt 0:04:00]} Ka8 {[%emt 0:03:07]} 31. Qa4 {[%emt 0:02:55]} a6 {[%emt 0:00:07]} 32. Nd3 {[%emt 0:02:00]} c5 {[%emt 0:05:50]} 33. Nxc5 {[%emt 0:00:35]} Qf5 {[%emt 0:00:55]} 34. Rb3 {[%emt 0:01:12]} Rb8 {[%emt 0:00:27]} 35. Nd7 {[%emt 0:05:49]} Rd8 {[%emt 0:01:37]} 36. Qb4 {[%emt 0:00:48]} b6 {[%emt 0:02:37]} 37. Ne5 {[%emt 0:00:21]} h4 {[%emt 0:00:53]} 38. Qc4 {[%emt 0:01:16]} Kb7 {[%emt 0:00:15]} 39. Qe2 {[%emt 0:00:57]} h3 {[%emt 0:00:39]} 40. g3 {[%emt 0:01:13]} Rd5 {[%emt 0:02:42]} 41. Nxg4 {[%emt 0:31:53]} Qh5 {[%emt 0:32:01]} 42. Qe4 {[%emt 0:01:52]} Qf5 {[%emt 0:00:12]} 43. f3 {[%emt 0:01:14]} Ne8 {[%emt 0:01:00]} 44. Ne3 {[%emt 0:06:18]} Qxe4 {[%emt 0:00:14]} 45. fxe4 {[%emt 0:00:06]} Ra5 {[%emt 0:01:27]} 46. a3 {[%emt 0:00:28]} Rg5 {[%emt 0:01:58]} 47. e5 {[%emt 0:01:10]} Rg7 {[%emt 0:01:57]} 48. a4 {[%emt 0:00:35]} Rgd7 {[%emt 0:00:22]} 49. Ra3 {[%emt 0:01:03]} c5 {[%emt 0:00:05]} 50. dxc5 {[%emt 0:04:02]} Rd2 {[%emt 0:00:41]} 51. Rb3 {[%emt 0:01:07]} R8d3 {[%emt 0:00:41]} 52. Rxb6+ {[%emt 0:00:24]} Kc8 {[%emt 0:00:01]} 53. Ng4 {[%emt 0:01:04]} Rg2+ {[%emt 0:00:22]} 54. Kh1 {[%emt 0:00:05]} Nc7 {[%emt 0:01:01]} 55. c6 {[%emt 0:02:59]} Re2 {[%emt 0:01:07]} 56. Rb4 {[%emt 0:05:26]} Nd5 {[%emt 0:00:31]} 57. Rd4 {[%emt 0:00:45]} Rxd4 {[%emt 0:00:54]} 58. cxd4 {[%emt 0:00:02]} Rxb2 {[%emt 0:00:32]} 59. Nf6 {[%emt 0:00:00]} Ne3 {[%emt 0:00:00]} 60. Rc1 {[%emt 0:00:00]} Nc2 61. d5 {[%emt 0:00:00]} 1-0

[Event "43. Zurich Weihnachtsopen 2019"]
[Site "Zurich/SUI"]
[Date "2019.12.29"]
[Round "5.3"]
[White "Grover, Sahaj"]
[Black "Unuk, Laura"]
[Result "1/2-1/2"]
[ECO "A07"]
[WhiteElo "2508"]
[BlackElo "2305"]
[Annotator "ChessBase"]
[PlyCount "40"]
[EventDate "2019.12.26"]
[EventType "swiss"]
[SourceTitle "playchess.com"]
[Source "ChessBase"]
[SourceQuality "1"]
[TimeControl "40/5400+30:1800+30"]

1. Nf3 {[%emt 0:00:03]} Nf6 {[%emt 0:00:57]} 2. g3 {[%emt 0:00:43]} d5 {[%emt 0:00:44]} 3. Bg2 {[%emt 0:00:07]} c6 {[%emt 0:00:21]} 4. O-O {[%emt 0:00:14]} Bg4 {[%emt 0:00:22]} 5. d3 {[%emt 0:01:33]} Nbd7 {[%emt 0:01:06]} 6. h3 {[%emt 0:02:02]} Bh5 {[%emt 0:03:08]} 7. Qe1 {[%emt 0:00:34]} e5 {[%emt 0:02:41]} 8. e4 {[%emt 0:00:39]} dxe4 {[%emt 0:05:57]} 9. dxe4 {[%emt 0:00:19]} Bxf3 {[%emt 0:00:38]} 10. Bxf3 {[%emt 0:00:07]} Bc5 {[%emt 0:00:05]} 11. b4 {[%emt 0:01:08]} Bd6 {[%emt 0:08:42]} 12. Na3 {[%emt 0:16:53]} Qe7 {[%emt 0:07:15]} 13. c3 {[%emt 0:00:29]} b5 {[%emt 0:01:14]} 14. Nc2 {[%emt 0:01:37]} Nb6 {[%emt 0:12:03]} 15. Ne3 {[%emt 0:02:00]} g6 {[%emt 0:01:03]} 16. Kg2 {[%emt 0:10:55]} Nfd7 {[%emt 0:10:21]} 17. Bd1 {[%emt 0:02:10]} Nf8 {[%emt 0:01:47]} 18. a4 {[%emt 0:00:44]} a6 {[%emt 0:10:32]} 19. axb5 axb5 {[%emt 0:01:45]} 20. Rxa8+ {[%emt 0:04:48]} Nxa8 {[%emt 0:00:04]} 1/2-1/2